bitfinex/quotes_SOLUSD_20250604
["timestamp","ask_amount","ask_price","bid_price","bid_amount"]
[1748999767160,14.44405826,156.09,156.05,14.44405826]
[1748999767955,14.44405826,156.09,156.04,54.44405826]
[1748999768352,14.44405826,156.09,156.05,14.44405826]
[1748999769370,14.44405826,156.09,156.04,54.44405826]
[1748999770664,14.44405826,156.08,156.04,54.44405826]
[1748999771248,14.44405826,156.07,156.04,40.0]
[1748999771970,18.79181043,156.11,156.02,16.7603]
[1748999771971,14.44405826,156.05,156.02,16.7603]
[1748999772364,14.44405826,156.05,156.03,40.0]
[1748999772557,26.14216157,156.08,156.03,40.0]
[1748999772768,14.44405826,156.06,156.03,40.0]
[1748999773157,14.44405826,156.06,156.04,40.0]
[1748999774969,26.0,156.08,156.04,40.0]
[1748999775273,26.0,156.1,156.05,14.44405826]
[1748999775478,14.44405826,156.08,156.04,54.44405826]
[1748999775853,14.44405826,156.08,156.04,65.06405826]
[1748999776078,14.44405826,156.1,156.06,14.44405826]
[1748999776282,14.44405826,156.11,156.06,14.44405826]
[1748999776659,14.44405826,156.1,156.05,14.44405826]
[1748999776857,14.44405826,156.09,156.04,153.66405826]
[1748999777082,14.44405826,156.06,156.05,40.0]
[1748999777378,14.44405826,156.07,156.05,40.0]
[1748999777951,14.44405826,156.07,156.06,40.0]
[1748999782258,14.44405826,156.07,156.04,99.22]
[1748999782457,14.44405826,156.06,156.05,39.98]
[1748999782986,0.14216157,156.05,156.02,88.6]
[1748999783185,0.14216157,156.05,156.03,39.98]
[1748999783492,14.44405826,156.04,156.03,39.98]
[1748999785179,14.44405826,156.05,156.03,39.98]
[1748999785485,14.44405826,156.06,156.03,39.98]
[1748999786983,14.58621983,156.05,156.03,39.98]
[1748999789385,14.44405826,156.05,156.03,39.98]
[1748999790991,14.44405826,156.04,156.0,12.2231]
[1748999791177,14.44405826,156.03,156.01,39.98]
[1748999791896,14.44405826,156.03,156.0,100.8231]
[1748999792089,14.44405826,156.03,156.02,39.98]
[1748999792592,0.14216157,156.06,156.02,39.98]
[1748999792772,14.44405826,156.05,156.02,39.98]
[1748999793088,14.44405826,156.1,156.04,14.44405826]
[1748999793267,14.44405826,156.1,156.05,54.42405826]
[1748999793687,18.64964886,156.11,156.05,39.98]
[1748999793888,14.44405826,156.08,156.05,39.98]
[1748999796071,14.44405826,156.09,156.05,39.98]
[1748999796470,18.64964886,156.11,156.05,54.42405826]
[1748999796471,0.14216157,156.11,156.05,54.42405826]
[1748999796797,14.44405826,156.09,156.05,54.42405826]
[1748999797204,14.44405826,156.08,156.05,39.98]
[1748999798273,18.79181043,156.11,156.05,39.98]
[1748999798468,14.44405826,156.09,156.05,39.98]
[1748999798673,14.44405826,156.09,156.05,128.58]
[1748999798988,14.44405826,156.07,156.05,128.58]
[1748999799473,18.79181043,156.11,156.05,128.58]
[1748999799474,14.44405826,156.06,156.05,88.6]
[1748999799675,14.44405826,156.06,156.05,39.98]
[1748999804202,14.44405826,156.06,156.02,25.06405826]
[1748999804403,14.44405826,156.06,156.03,39.98]
[1748999804620,0.28432314,156.1,156.03,128.58]
[1748999804923,14.44405826,156.08,156.04,14.44405826]
[1748999806116,18.79181043,156.11,156.05,14.44405826]
[1748999806117,14.44405826,156.1,156.05,14.44405826]
[1748999806847,14.44405826,156.09,156.05,14.44405826]
[1748999807133,12.46702217,156.17,156.07,14.44405826]
[1748999807305,14.44405826,156.12,156.08,39.98]
[1748999809706,14.44405826,156.13,156.09,14.44405826]
[1748999810825,14.44405826,156.14,156.09,14.44405826]
[1748999811234,26.0,156.17,156.11,14.44405826]
[1748999811549,14.44405826,156.16,156.12,39.98]
[1748999811748,14.44405826,156.15,156.12,39.98]
[1748999814418,26.0,156.17,156.12,39.98]
[1748999814617,14.44405826,156.16,156.12,39.98]
[1748999815347,14.44405826,156.16,156.12,54.42405826]
[1748999815644,14.44405826,156.16,156.12,39.98]
[1748999815845,0.14216157,156.18,156.12,54.42405826]
[1748999816054,14.44405826,156.17,156.13,25.06405826]
[1748999816256,14.44405826,156.18,156.13,25.06405826]
[1748999817545,14.44405826,156.17,156.13,10.62]
[1748999818944,44.79181043,156.2,156.13,10.62]
[1748999819148,14.44405826,156.18,156.13,25.06405826]
[1748999819645,14.44405826,156.18,156.13,113.66405826]
[1748999820933,14.44405826,156.18,156.14,14.44405826]
[1748999821243,14.44405826,156.2,156.16,14.44405826]
[1748999821545,0.14216157,156.21,156.16,14.44405826]
[1748999821546,14.44405826,156.19,156.17,39.94]
[1748999821922,14.44405826,156.18,156.17,39.94]
[1748999822441,14.58621983,156.18,156.16,88.6]
[1748999822648,33.23586869,156.17,156.14,39.94]
[1748999822836,14.58621983,156.15,156.14,39.94]
[1748999823439,0.14216157,156.15,156.14,39.94]
[1748999823625,14.44405826,156.15,156.14,39.94]
[1748999824327,14.44405826,156.15,156.09,25.04405826]
[1748999824547,14.44405826,156.13,156.1,39.94]
[1748999825448,14.44405826,156.14,156.1,39.94]
[1748999826743,14.44405826,156.13,156.1,39.94]
[1748999827052,14.44405826,156.13,156.09,10.6]
[1748999827266,14.44405826,156.11,156.09,10.6]
[1748999827550,14.44405826,156.11,156.1,39.94]
[1748999827764,14.44405826,156.12,156.1,39.94]
[1748999828757,14.44405826,156.12,156.09,10.6]
[1748999828944,14.44405826,156.12,156.1,39.94]
[1748999829743,14.44405826,156.11,156.09,10.6]
[1748999829937,14.44405826,156.11,156.1,39.94]
[1748999830433,0.14216157,156.13,156.1,39.94]
[1748999830640,14.44405826,156.12,156.1,39.94]
[1748999831972,0.14216157,156.13,156.1,39.94]
[1748999832340,14.44405826,156.12,156.1,39.94]
[1748999832965,14.44405826,156.11,156.1,39.94]
[1748999834379,0.14216157,156.13,156.1,39.94]
[1748999834570,14.44405826,156.12,156.1,39.94]
[1748999835374,14.44405826,156.11,156.1,39.94]
[1748999835555,14.44405826,156.11,156.09,99.2]
[1748999835743,14.44405826,156.11,156.1,39.94]
[1748999836472,1.5879,156.2,156.1,54.38405826]
[1748999836679,14.44405826,156.17,156.12,14.44405826]
[1748999837035,40.44405826,156.17,156.12,14.44405826]
[1748999837244,14.44405826,156.16,156.12,14.44405826]
[1748999837780,1.5305,156.24,156.14,14.44405826]
[1748999837944,14.44405826,156.19,156.15,64.98405826]
[1748999838339,14.44405826,156.2,156.15,64.98405826]
[1748999839063,26.14216157,156.21,156.15,64.98405826]
[1748999839269,1.5305,156.24,156.16,14.44405826]
[1748999839569,14.44405826,156.24,156.19,14.44405826]
[1748999839775,14.44405826,156.25,156.2,54.38405826]
[1748999839975,14.44405826,156.25,156.21,39.94]
[1748999840264,14.44405826,156.24,156.21,39.94]
[1748999842249,14.44405826,156.25,156.21,39.94]
[1748999843079,0.14216157,156.27,156.21,39.94]
[1748999843080,14.44405826,156.24,156.21,39.94]
[1748999844961,14.44405826,156.25,156.21,54.38405826]
[1748999845962,18.79181043,156.27,156.21,54.38405826]
[1748999846168,14.44405826,156.25,156.21,54.38405826]
[1748999848375,14.44405826,156.27,156.23,14.44405826]
[1748999848570,14.44405826,156.29,156.25,14.44405826]
[1748999848767,14.44405826,156.29,156.26,39.92]
[1748999849161,44.79181043,156.31,156.26,39.92]
[1748999849162,0.8612856,156.32,156.27,14.44405826]
[1748999849360,15.30534386,156.32,156.28,14.44405826]
[1748999849867,15.30534386,156.32,156.26,39.92]
[1748999849868,14.44405826,156.31,156.26,54.36405826]
[1748999850081,14.44405826,156.28,156.26,39.92]
[1748999850383,14.44405826,156.28,156.24,14.44405826]
[1748999850585,14.44405826,156.28,156.27,39.9]
[1748999850789,14.44405826,156.28,156.23,8.1681]
[1748999850996,14.44405826,156.24,156.22,10.6]
[1748999851181,14.44405826,156.24,156.23,39.9]
[1748999851364,14.44405826,156.25,156.23,39.9]
[1748999851765,26.0,156.27,156.23,39.9]
[1748999851976,14.44405826,156.25,156.23,39.9]
[1748999852164,14.44405826,156.24,156.23,39.9]
[1748999854498,14.44405826,156.25,156.23,39.9]
[1748999856395,0.14216157,156.26,156.24,39.9]
[1748999856602,14.44405826,156.25,156.24,39.9]
[1748999857296,0.14216157,156.24,156.22,10.6]
[1748999857596,14.44405826,156.23,156.19,7.9557]
[1748999857779,14.44405826,156.23,156.2,39.9]
[1748999859089,14.44405826,156.22,156.19,7.9557]
[1748999859278,14.44405826,156.22,156.21,39.9]
[1748999860485,14.44405826,156.23,156.21,39.9]
[1748999861005,14.44405826,156.23,156.22,39.9]
[1748999862703,14.58621983,156.23,156.22,39.9]
[1748999862909,18.79181043,156.22,156.18,10.58]
[1748999863083,18.79181043,156.22,156.15,63.1525]
[1748999863084,14.44405826,156.19,156.15,63.1525]
[1748999863283,14.44405826,156.17,156.16,39.9]
[1748999863504,14.44405826,156.17,156.15,63.1525]
[1748999863673,14.44405826,156.17,156.16,39.9]
[1748999865883,14.44405826,156.18,156.16,39.9]
[1748999866776,14.44405826,156.18,156.15,63.1525]
[1748999866975,14.44405826,156.18,156.17,39.9]
[1748999871711,14.44405826,156.18,156.14,10.58]
[1748999872010,14.44405826,156.18,156.17,39.9]
[1748999872709,14.44405826,156.19,156.17,39.9]
[1748999872912,14.44405826,156.22,156.18,14.44405826]
[1748999873084,14.44405826,156.23,156.19,14.44405826]
[1748999873904,14.44405826,156.22,156.18,14.44405826]
[1748999874382,14.44405826,156.21,156.17,62.04885826]
[1748999874581,14.44405826,156.21,156.17,47.6048]
[1748999875593,14.44405826,156.2,156.17,47.6048]
[1748999877902,14.44405826,156.21,156.17,62.04885826]
[1748999878824,14.44405826,156.21,156.17,150.64885826]
[1748999880610,14.44405826,156.2,156.17,130.0696]
[1748999880927,14.44405826,156.18,156.17,88.6]
[1748999881098,14.44405826,156.18,156.17,128.48]
[1748999881293,14.44405826,156.19,156.17,128.48]
[1748999881515,14.44405826,156.2,156.17,128.48]
[1748999882320,14.44405826,156.18,156.17,128.48]
[1748999883224,14.44405826,156.18,156.17,39.88]
[1748999884830,26.0,156.16,156.15,10.58]
[1748999885135,0.14216157,156.17,156.11,10.56]
[1748999885333,14.44405826,156.15,156.12,39.88]
[1748999885536,14.44405826,156.15,156.13,39.88]
[1748999885824,14.44405826,156.14,156.13,39.88]
[1748999886923,14.58621983,156.14,156.13,39.88]
[1748999887701,18.79181043,156.13,156.07,10.56]
[1748999887898,14.44405826,156.08,156.07,10.56]
[1748999888207,14.44405826,156.08,156.07,7.05]
[1748999888525,33.23586869,156.08,156.07,7.05]
[1748999888725,0.14216157,156.07,156.03,10.56]
[1748999888929,14.44405826,156.04,156.03,10.56]
[1748999889117,14.44405826,156.05,156.03,57.5]
[1748999889303,14.44405826,156.04,156.03,57.5]
[1748999889634,14.44405826,156.04,156.03,50.44]
[1748999889999,14.44405826,156.04,155.99,16.7616]
[1748999890198,14.44405826,156.02,155.99,16.7616]
[1748999890436,14.44405826,156.02,156.0,39.88]
[1748999891216,14.44405826,156.02,155.99,16.7616]
[1748999891418,14.44405826,156.02,156.01,39.88]
[1748999891913,14.44405826,156.03,156.01,39.88]
[1748999894838,1.5435,156.13,156.02,14.44405826]
[1748999895020,14.44405826,156.06,156.01,54.32405826]
[1748999895607,14.44405826,156.05,156.01,54.32405826]
[1748999896229,14.44405826,156.06,156.01,54.32405826]
[1748999896736,14.44405826,156.05,156.01,54.32405826]
[1748999898636,14.44405826,156.05,155.99,105.3616]
[1748999898841,14.44405826,156.05,156.02,39.9]
[1748999899511,14.44405826,156.04,156.02,39.9]
[1748999900236,14.44405826,156.05,156.02,39.9]
[1748999900843,14.44405826,156.05,156.03,39.9]
[1748999901913,14.44405826,156.04,156.03,39.9]
[1748999902634,14.44405826,156.04,155.99,31.20565826]
[1748999902817,14.44405826,156.04,156.0,39.9]
[1748999904114,14.44405826,156.04,156.0,54.34405826]
[1748999904311,14.44405826,156.04,156.01,39.9]
[1748999905251,14.44405826,156.04,156.01,128.5]
[1748999907238,0.42648471,156.09,156.01,128.5]
[1748999907421,14.44405826,156.04,156.01,128.5]
[1748999908017,26.0,156.05,156.01,128.5]
[1748999908337,14.44405826,156.06,156.02,14.44405826]
[1748999908540,14.44405826,156.05,156.01,54.34405826]
[1748999909454,14.44405826,156.05,156.01,39.9]
[1748999909646,14.44405826,156.04,156.01,39.9]
[1748999910149,14.44405826,156.03,156.01,39.9]
[1748999911616,14.44405826,156.04,156.0,14.44405826]
[1748999911821,14.44405826,156.04,156.01,39.9]
[1748999913148,14.44405826,156.03,156.01,39.9]
[1748999915333,14.44405826,156.03,155.99,31.20565826]
[1748999915532,14.44405826,156.03,156.0,39.9]
[1748999915735,14.44405826,156.02,156.01,39.9]
[1748999915940,14.44405826,156.02,156.01,128.5]
[1748999916141,14.44405826,156.02,155.99,10.56]
[1748999916454,14.44405826,156.0,155.96,12.1052]
[1748999916631,14.44405826,155.97,155.96,10.56]
[1748999916952,14.44405826,155.97,155.96,39.9]
[1748999917151,14.44405826,155.97,155.92,10.56]
[1748999917152,0.14216157,155.96,155.92,10.56]
[1748999917341,0.14216157,155.96,155.95,39.88]
[1748999917529,14.58621983,155.96,155.92,10.56]
[1748999917733,14.44405826,155.93,155.92,10.56]
[1748999917948,14.44405826,155.93,155.92,50.44]
[1748999919246,14.44405826,155.93,155.92,39.9]
[1748999922859,14.44405826,155.93,155.9,48.097781]
[1748999923040,14.44405826,155.93,155.91,39.9]
[1748999924343,14.44405826,155.95,155.91,54.34405826]
[1748999924549,14.44405826,155.96,155.91,54.34405826]
[1748999924942,14.44405826,155.95,155.91,39.9]
[1748999929452,14.44405826,155.95,155.91,54.34405826]
[1748999930972,14.44405826,155.95,155.91,39.9]
[1748999934055,14.44405826,155.96,155.91,54.34405826]
[1748999934367,0.14216157,155.98,155.91,54.34405826]
[1748999934368,14.44405826,155.95,155.91,54.34405826]
[1748999937650,44.64964886,155.99,155.91,54.34405826]
[1748999937651,14.44405826,155.97,155.92,14.44405826]
[1748999937855,14.44405826,155.97,155.92,25.00405826]
[1748999938047,14.44405826,155.98,155.93,14.44405826]
[1748999938666,26.0,155.99,155.92,10.56]
[1748999938667,14.44405826,155.99,155.94,14.44405826]
[1748999938865,14.44405826,155.99,155.95,39.9]
[1748999939474,40.44405826,155.98,155.95,39.9]
[1748999942051,14.44405826,155.97,155.95,39.9]
[1748999943170,40.44405826,155.98,155.95,39.9]
[1748999944878,0.14216157,156.0,155.96,14.44405826]
[1748999944879,40.44405826,156.0,155.96,14.44405826]
[1748999945175,40.44405826,156.0,155.95,39.9]
[1748999945176,18.64964886,156.03,155.97,14.44405826]
[1748999945350,14.44405826,156.05,156.01,14.44405826]
[1748999945550,14.44405826,156.05,156.02,39.88]
[1748999945853,40.44405826,156.05,156.02,39.88]
[1748999946053,14.44405826,156.04,156.02,39.88]
[1748999947358,14.44405826,156.03,156.02,39.88]
[1748999949681,14.44405826,156.04,156.02,39.88]
[1748999950382,40.44405826,156.05,156.02,39.88]
[1748999950957,14.44405826,156.04,156.02,39.88]
[1748999952088,14.44405826,156.03,156.02,39.88]
[1748999952595,14.44405826,156.03,155.98,100.748]
[1748999952759,14.44405826,156.03,155.99,39.86]
[1748999954579,14.44405826,156.03,155.99,54.30405826]
[1748999954893,14.44405826,156.03,155.99,39.86]
[1748999955090,6.665,156.1,155.99,54.30405826]
[1748999955279,14.44405826,156.05,156.01,14.44405826]
[1748999955686,14.44405826,156.03,156.02,39.86]
[1748999958989,26.0,156.07,156.02,39.86]
[1748999959193,14.44405826,156.05,156.02,39.86]
[1748999959513,14.44405826,156.03,155.99,20.67475826]
[1748999959699,14.44405826,156.04,156.0,39.86]
[1748999959910,14.44405826,156.04,156.0,54.30405826]
[1748999960478,26.0,156.06,156.01,14.44405826]
[1748999960771,14.44405826,156.06,156.03,10.0]
[1748999960993,14.44405826,156.06,156.04,39.86]
[1748999961672,14.44405826,156.05,156.04,39.86]
[1748999962087,14.44405826,156.06,156.04,39.86]
[1748999962292,14.44405826,156.05,156.04,39.86]
[1748999963608,0.14216157,156.04,156.03,10.0]
[1748999963905,14.58621983,156.04,156.03,49.86]
[1748999965382,14.44405826,156.04,156.03,49.86]
[1748999965899,14.44405826,156.04,156.03,10.0]
[1748999966102,0.14216157,156.06,156.03,49.86]
[1748999966282,14.44405826,156.04,156.03,49.86]
[1748999967187,0.14216157,156.06,156.03,49.86]
[1748999967388,0.42648471,156.09,156.03,49.86]
[1748999967596,14.44405826,156.07,156.03,64.30405826]
[1748999968212,14.58621983,156.09,156.04,14.44405826]
[1748999968375,0.14216157,156.09,156.04,14.44405826]
[1748999968579,14.58621983,156.09,156.04,14.44405826]
[1748999969007,14.44405826,156.08,156.04,14.44405826]
[1748999969182,18.64964886,156.1,156.05,16.01515826]
[1748999969183,14.44405826,156.1,156.05,16.01515826]
[1748999969386,0.14216157,156.12,156.06,39.84]
[1748999969387,14.44405826,156.09,156.06,39.84]
[1748999970814,0.28432314,156.11,156.06,39.84]
[1748999970996,14.44405826,156.07,156.06,39.84]
[1748999971680,14.44405826,156.08,156.06,39.84]
[1748999971881,0.28432314,156.11,156.06,39.84]
[1748999972105,14.44405826,156.08,156.06,39.84]
[1748999972583,14.44405826,156.08,156.07,39.84]
[1748999972788,14.44405826,156.08,156.04,34.98405826]
[1748999972987,14.44405826,156.08,156.05,39.84]
[1748999973397,14.44405826,156.09,156.05,54.28405826]
[1748999973801,14.44405826,156.07,156.05,39.84]
[1748999973989,14.44405826,156.06,156.05,39.84]
[1748999974508,14.44405826,156.06,156.04,20.54]
[1748999974695,14.44405826,156.06,156.05,39.84]
[1748999975277,14.44405826,156.07,156.05,39.84]
[1748999975702,14.44405826,156.08,156.06,39.84]
[1748999976902,14.44405826,156.07,156.06,39.84]
[1748999977281,14.44405826,156.07,156.04,20.54]
[1748999977503,14.44405826,156.05,156.04,49.84]
[1748999980715,14.44405826,156.07,156.04,49.84]
[1748999981119,26.0,156.08,156.04,49.84]
[1748999981120,14.44405826,156.05,156.04,49.84]
[1748999982519,4.44405826,156.05,156.04,49.84]
[1748999982922,4.58621983,156.05,156.04,10.0]
[1748999983111,23.23586869,156.05,156.04,10.0]
[1748999983324,49.23586869,156.05,156.04,10.0]
[1748999986037,44.79181043,156.05,156.04,10.0]
[1748999986226,59.23586869,156.05,156.04,10.0]
[1748999986424,40.58621983,156.05,156.04,10.0]
[1748999986616,14.58621983,156.05,156.04,10.0]
[1748999987634,40.58621983,156.05,156.04,10.0]
[1748999987842,14.58621983,156.05,156.04,10.0]
[1748999988029,33.23586869,156.05,156.04,10.0]
[1748999988225,33.52019183,156.05,156.04,10.0]
[1748999991241,27.96425009,156.05,156.04,10.0]
[1748999992047,53.96425009,156.05,156.04,10.0]
[1748999992229,27.96425009,156.05,156.04,10.0]
[1748999993137,53.96425009,156.05,156.04,10.0]
[1748999993339,28.10641166,156.05,156.04,10.0]
[1748999994724,54.10641166,156.05,156.04,10.0]
[1748999994931,28.10641166,156.05,156.04,10.0]
[1748999995243,53.96425009,156.05,156.04,10.0]
[1748999995636,28.10641166,156.05,156.04,10.0]
[1748999995821,54.10641166,156.05,156.04,10.0]
[1748999996642,28.10641166,156.05,156.04,10.0]
[1748999997248,40.58621983,156.05,156.04,10.0]
[1748999997434,40.44405826,156.05,156.04,10.0]
[1749000004853,40.58621983,156.05,156.04,10.0]
[1749000005553,59.52019183,156.05,156.04,10.0]
[1749000007433,0.14216157,156.04,156.03,10.0]
[1749000007745,14.58621983,156.04,156.03,10.0]
[1749000010335,33.52019183,156.04,156.03,10.0]
[1749000014535,19.07613357,156.04,156.03,10.0]
[1749000014740,33.52019183,156.04,156.03,10.0]
[1749000016844,0.28432314,156.06,156.03,10.0]
[1749000017088,14.44405826,156.04,156.03,10.0]
[1749000017275,40.44405826,156.04,156.03,10.0]
[1749000018062,16.64166829,156.1,156.03,10.0]
[1749000018063,15.10866829,156.1,156.03,10.0]
[1749000018263,14.44405826,156.05,156.03,11.5216]
[1749000019243,40.44405826,156.06,156.03,11.5216]
[1749000020745,14.44405826,156.05,156.03,11.5216]
[1749000023646,14.44405826,156.05,156.03,100.1216]
[1749000024066,14.44405826,156.04,156.03,100.1216]
[1749000024267,14.44405826,156.04,156.03,98.6]
[1749000025179,14.58621983,156.04,156.03,98.6]
[1749000026165,33.52019183,156.04,156.03,98.6]
[1749000026586,33.52019183,156.04,156.03,10.0]
[1749000028873,14.58621983,156.04,156.03,10.0]
[1749000030077,14.87054297,156.04,156.03,10.0]
[1749000030694,14.58621983,156.04,156.03,10.0]
[1749000033704,14.87054297,156.04,156.03,10.0]
[1749000036102,33.52019183,156.04,156.03,10.0]
[1749000040803,26.0,155.97,155.96,10.52]
[1749000040986,14.58621983,155.97,155.95,1.5801]
[1749000041186,14.44405826,155.96,155.95,41.3801]
[1749000041389,14.44405826,155.96,155.95,1.5801]
[1749000042084,14.44405826,155.96,155.95,41.3801]
[1749000043420,14.44405826,155.96,155.95,39.8]
[1749000045714,14.44405826,155.96,155.91,16.10165826]
[1749000045907,14.44405826,155.95,155.92,39.8]
[1749000047191,14.44405826,155.93,155.91,1.6576]
[1749000047391,14.44405826,155.93,155.92,39.8]
[1749000048710,14.44405826,155.94,155.92,39.8]
[1749000049019,14.44405826,155.95,155.92,39.8]
[1749000049316,14.44405826,155.95,155.91,16.10165826]
[1749000049522,14.44405826,155.95,155.92,39.8]
[1749000050227,14.44405826,155.96,155.92,128.4]
[1749000050526,14.44405826,155.96,155.92,142.84405826]
[1749000051298,14.44405826,155.93,155.91,1.6576]
[1749000051515,14.44405826,155.92,155.91,1.6576]
[1749000051725,14.44405826,155.92,155.91,41.4576]
[1749000053322,14.44405826,155.93,155.91,41.4576]
[1749000054547,26.14216157,155.97,155.91,41.4576]
[1749000054834,14.44405826,155.95,155.91,41.4576]
[1749000057213,14.44405826,155.95,155.91,55.90165826]
[1749000057710,26.14216157,155.97,155.91,55.90165826]
[1749000057933,14.44405826,155.95,155.91,41.4576]
[1749000059122,14.44405826,155.95,155.91,130.0576]
[1749000060823,0.14216157,156.0,155.94,14.44405826]
[1749000061036,14.44405826,155.99,155.95,39.8]
[1749000061338,14.44405826,155.99,155.95,142.84405826]
[1749000061752,1.5263,156.07,155.96,20.49375826]
[1749000062050,1.5263,156.07,155.97,1.5386]
[1749000062051,14.44405826,155.99,155.97,1.5386]
[1749000063115,14.44405826,155.98,155.97,1.5386]
[1749000063335,14.44405826,155.98,155.96,6.0497]
[1749000063535,14.44405826,155.97,155.96,39.8]
[1749000063741,14.44405826,155.97,155.95,39.8]
[1749000064034,14.44405826,155.96,155.95,39.8]
[1749000064426,14.44405826,155.97,155.95,39.8]
[1749000066831,14.44405826,155.96,155.95,39.8]
[1749000068039,14.44405826,155.99,155.95,39.8]
[1749000068419,14.44405826,155.99,155.95,54.24405826]
[1749000068931,14.44405826,155.97,155.95,39.8]
[1749000069245,14.44405826,155.98,155.95,39.8]
[1749000070114,14.44405826,155.97,155.95,39.8]
[1749000071921,14.44405826,155.96,155.95,39.8]
[1749000074363,14.44405826,155.96,155.95,39.78]
[1749000074649,14.44405826,155.97,155.95,39.78]
[1749000075241,14.44405826,155.96,155.95,39.78]
[1749000077940,0.14216157,155.99,155.95,39.78]
[1749000078137,14.44405826,155.96,155.95,39.78]
[1749000078533,14.44405826,155.96,155.92,6.3039]
[1749000078846,14.44405826,155.94,155.93,39.78]
[1749000080455,14.44405826,155.94,155.92,88.6]
[1749000080638,14.44405826,155.93,155.92,88.6]
[1749000080834,14.44405826,155.94,155.92,128.38]
[1749000081657,14.44405826,155.94,155.93,39.78]
[1749000083271,14.44405826,155.95,155.93,39.78]
[1749000084149,14.44405826,155.96,155.93,39.78]
[1749000084456,14.44405826,155.98,155.94,14.44405826]
[1749000084696,14.44405826,155.97,155.93,54.22405826]
[1749000085249,14.44405826,155.98,155.93,54.22405826]
[1749000085443,14.44405826,155.98,155.94,14.44405826]
[1749000086156,14.44405826,155.98,155.93,45.9347]
[1749000086359,14.44405826,155.99,155.94,90.1483]
[1749000086662,14.44405826,156.02,155.97,14.44405826]
[1749000086833,14.44405826,156.02,155.98,39.78]
[1749000088058,14.44405826,156.02,155.98,54.22405826]
[1749000088754,14.44405826,155.99,155.94,1.5483]
[1749000089055,14.44405826,155.99,155.91,10.5]
[1749000089056,14.44405826,155.95,155.91,10.5]
[1749000089356,14.44405826,155.94,155.92,39.78]
[1749000089538,14.44405826,155.94,155.91,10.5]
[1749000089956,14.44405826,155.94,155.92,39.78]
[1749000091456,14.44405826,155.95,155.92,39.78]
[1749000092044,14.44405826,155.96,155.92,39.78]
[1749000092248,14.44405826,155.97,155.92,54.22405826]
[1749000092448,14.44405826,155.97,155.93,14.44405826]
[1749000093750,14.44405826,155.97,155.93,24.94405826]
[1749000094161,14.44405826,155.97,155.93,10.5]
[1749000094549,14.44405826,155.96,155.93,10.5]
[1749000095238,40.44405826,156.0,155.93,10.5]
[1749000095439,14.44405826,155.96,155.93,10.5]
[1749000098548,14.44405826,155.97,155.93,10.5]
[1749000098858,14.44405826,155.97,155.93,24.94405826]
[1749000099958,14.44405826,155.96,155.93,10.5]
[1749000100549,14.44405826,155.96,155.93,99.1]
[1749000102363,14.44405826,155.95,155.93,99.1]
[1749000103261,14.44405826,155.95,155.93,88.6]
[1749000107067,0.14216157,155.99,155.93,88.6]
[1749000107253,14.44405826,155.95,155.93,88.6]
[1749000109262,14.44405826,155.96,155.93,88.6]
[1749000110772,14.44405826,155.96,155.94,39.76]
[1749000112454,14.44405826,155.96,155.94,128.36]
[1749000123677,0.14216157,155.99,155.94,128.36]
[1749000123877,14.44405826,155.97,155.94,128.36]
[1749000124083,14.44405826,155.96,155.94,128.36]
[1749000127099,14.44405826,155.97,155.94,128.36]
[1749000129393,14.44405826,155.96,155.94,128.36]
[1749000133594,26.14216157,155.99,155.94,128.36]
[1749000133802,14.44405826,155.96,155.94,128.36]
[1749000134981,14.44405826,155.95,155.94,128.36]
[1749000136698,14.44405826,155.96,155.94,128.36]
[1749000136907,14.44405826,155.96,155.94,39.76]
[1749000139393,14.44405826,155.97,155.94,39.76]
[1749000139599,23.25913408,156.02,155.94,39.76]
[1749000139904,26.0,156.01,155.96,14.44405826]
[1749000140118,4.60948522,156.06,156.0,14.44405826]
[1749000140296,18.13062722,156.05,156.01,54.16405826]
[1749000140614,14.44405826,156.05,156.02,39.72]
[1749000140980,26.0,156.06,156.02,39.72]
[1749000140981,14.44405826,156.04,156.02,39.72]